Cogmind - Beta 13 --- EXPLORER MODE // 2024.06.18 @ 09:50:07 Player: mrjoebobfred Result: Escaped! Performance ------------- Evolutions (9) 4500 Regions Visited (11) 2200 Robots Destroyed (108) 540 Value Destroyed (3336) 3336 Prototype IDs (12) 240 Alien Tech Used (0) 0 Bonus (3500) 3500 TOTAL SCORE: 14316 Bonus ------- Entered DSFs 500 Win 3000 Cogmind --------- Core Integrity 1551/1600 Matter 290/300 Energy 201/220 System Corruption 2% Temperature Cool (6) Movement Flying (30) Location To Epsilon Eridani Parts ------- > --- POWER (2) -------- Light Antimatter Reactor Micro Antimatter Reactor > --- PROPULSION (5) --- Field Propulsion Array Field Propulsion Array Diametric Drive > --- UTILITY (16) ----- Structural Scanner Advanced Visual Processing Unit Advanced Terrain Scan Processor Advanced Transmission Jammer ECM Suite Improved Reaction Control System Improved Phase Shifter Improved Hacking Suite Advanced Hacking Suite Advanced System Shield > --- WEAPON (3) ------- Heavy Pick > --- INVENTORY (5) ---- Improved Diametric Drive Cloaking Device Neutron Missile Launcher Peak State ------------ > --- POWER ------------ Micro Antimatter Reactor Compact Particle Reactor > --- PROPULSION ------- Field Propulsion Array Field Propulsion Array Diametric Drive > --- UTILITY ---------- Structural Scanner Advanced Visual Processing Unit Long-range Sensor Array Advanced Signal Interpreter Advanced Terrain Scan Processor Advanced Transmission Jammer ECM Suite Improved Reaction Control System Improved Phase Shifter Improved Hacking Suite Improved Hacking Suite Improved Hacking Suite Advanced Hacking Suite Advanced System Shield > --- WEAPON ----------- Heavy Pick > --- INVENTORY -------- Improved Diametric Drive Cloaking Device Neutron Missile Launcher [Rating: 127] Favorites ----------- Power Light Deuterium Engine Engine Light Deuterium Engine Power Core Nuclear Core Reactor Micro Antimatter Reactor Propulsion Light Treads Treads Light Treads Flight Unit Improved VTOL Module Utility Structural Scanner Device Structural Scanner Storage Medium Storage Unit Processor Targeting Computer Hackware Improved Hacking Suite Protection Medium Armor Plating Weapon Minigun Energy Gun Medium Laser Ballistic Gun Minigun Launcher Proton Missile Launcher Impact Weapon Heavy Flail Slashing Weapon Katana Piercing Weapon Heavy Pick Build | -11 -10 -9 -8 -7 -6 -5 -4 -3 -2 -2 -1 ------- Run | Yrd Mat Mat Mat Fac Fac Fac Fac Res Res DSF Acc Slots Evolved 19 | . 1 2 2 2 2 2 2 2 2 . 2 Power 1 | . . . . . . . . . 1 . . Propulsion 3 | . . . 1 1 . . . . 1 . . Utility 14 | . 1 1 1 1 2 2 2 2 . . 2 Weapon 1 | . . 1 . . . . . . . . . Parts Attached 90 | 8 6 7 14 11 6 7 3 13 1 1 13 Power 13 | 1 . 1 1 1 . 1 . 4 1 . 3 Engine 6 | 1 . 1 . 1 . . . 3 . . . Core 2 | . . . 1 . . 1 . . . . . Reactor 5 | . . . . . . . . 1 1 . 3 Propulsion 17 | 2 1 . 4 4 . 1 . 3 . . 2 Treads 7 | 2 1 . 4 . . . . . . . . Leg . | . . . . . . . . . . . . Wheel . | . . . . . . . . . . . . Hover . | . . . . . . . . . . . . Flight 10 | . . . . 4 . 1 . 3 . . 2 Utility 42 | 3 2 2 6 3 6 5 3 4 . 1 7 Device 19 | . 1 1 4 . . 2 1 3 . 1 6 Storage 2 | 1 . . 1 . . . . . . . . Processor 5 | . 1 . 1 . 1 . 1 . . . 1 Hackware 9 | . . . . 2 5 2 . . . . . Protection 7 | 2 . 1 . 1 . 1 1 1 . . . Artifact . | . . . . . . . . . . . . Weapon 18 | 2 3 4 3 3 . . . 2 . . 1 Energy Gun 1 | 1 . . . . . . . . . . . Energy Cannon . | . . . . . . . . . . . . Ballistic Gun 11 | 1 3 4 3 . . . . . . . . Ballistic Cannon . | . . . . . . . . . . . . Launcher 2 | . . . . 1 . . . 1 . . . Special Weapon . | . . . . . . . . . . . . Impact Weapon 1 | . . . . 1 . . . . . . . Slashing Weapon 1 | . . . . 1 . . . . . . . Piercing Weapon 2 | . . . . . . . . 1 . . 1 Special Melee Weapon . | . . . . . . . . . . . . Unidentified Prototypes 4 | . . . . . . 1 . 1 1 . 1 Parts Lost 16 | . 1 . 2 1 . . . 5 . 2 5 Power 3 | . . . . . . . . 2 . . 1 Propulsion . | . . . . . . . . . . . . Utility 12 | . 1 . 2 . . . . 3 . 2 4 Weapon 1 | . . . . 1 . . . . . . . Highest Loss Streak 5 | . 1 . 1 1 . . . 3 . 2 5 To Critical Strikes . | . . . . . . . . . . . . Average Slot Usage (%) 91 | . 97 99 97 85 87 84 87 74 62 58 63 Engine 5 | . 12 10 1 6 6 . . 2 . . . Core 2 | . . . 6 . . 4 5 . . . . Treads 16 | . 25 20 24 . . . . . . . . Flight 5 | . . . . 28 25 22 20 15 8 8 7 Device 13 | . 1 10 23 14 12 16 16 12 12 11 17 Storage 6 | . 12 10 8 . . . . . . . . Processor 6 | . 12 10 1 7 6 5 9 9 8 8 8 Hackware 6 | . . . . 13 25 23 25 22 20 20 17 Protection 6 | . 8 9 6 6 6 5 6 6 4 . . Ballistic Gun 18 | . 23 29 24 . . . . . . . . Naked Turns . | . . . . . . . . . . . . Heaviest Build 110 | 22 24 32 110 19 12 16 18 27 27 21 33 Greatest Support 66 | 40 40 40 66 20 20 20 20 30 30 30 37 Greatest Overweight (x) 1 | . . . 1 . . . . 1 . . 1 Average Overweight (x) . | . . . . . . . . . . . . Largest Inventory Capacity 25 | 10 10 10 25 25 5 5 5 5 5 5 5 Average Capacity 10 | 7 10 10 15 6 5 5 5 5 5 5 5 Most Carried 17 | 1 6 10 17 16 5 5 5 4 3 3 4 Average Carried 7 | . 4 8 10 5 4 4 3 2 3 3 3 Final Capacity 25 | 10 10 10 25 5 5 5 5 5 5 5 5 Final Carried 16 | 1 5 9 16 5 5 5 3 3 3 3 3 Class Distribution -------------------- 25% | Hacker-Gunner 18% | Hacker-Mutant 16% | Hacker-Skirmisher 14% | Wizard-Ninja 10% | Hacker-Tank 4% | Wizard-Mutant 4% | Wizard-Scout 4% | Hacker-Scout Dominant Class ---------------- Hacker-Mutant | -10/Materials Hacker-Gunner | -9/Materials Hacker-Skirmisher | -8/Materials Hacker-Scout | -7/Factory Wizard-Scout | -6/Factory Wizard-Ninja | -5/Factory Wizard-Ninja | -4/Factory Wizard-Ninja | -3/Research Wizard-Ninja | -2/Research Wizard-Mutant | -2/DSF Wizard-Ninja | -1/Access Resources | -11 -10 -9 -8 -7 -6 -5 -4 -3 -2 -2 -1 ----------- Run | Yrd Mat Mat Mat Fac Fac Fac Fac Res Res DSF Acc Matter Collected 2387 | 225 205 520 912 110 40 32 58 80 . . 205 Remotely . | . . . . . . . . . . . . Salvage Created 4102 | . 464 996 1435 168 136 165 . 494 . . 244 Parts 250 | . 29 86 92 8 3 4 . 16 . . 12 Haulers Intercepted 2 | . . 1 1 . . . . . . . . Recyclers Shooed 1 | . . . 1 . . . . . . . . Parts Field Recycled . | . . . . . . . . . . . . Retrieved Matter . | . . . . . . . . . . . . Parts Self-Destructed . | . . . . . . . . . . . . Prevented . | . . . . . . . . . . . . Kills | -11 -10 -9 -8 -7 -6 -5 -4 -3 -2 -2 -1 ------- Run | Yrd Mat Mat Mat Fac Fac Fac Fac Res Res DSF Acc Combat Hostiles Destroyed 72 | . 10 22 27 . 3 3 . 5 . . 2 Melee 7 | . . . . . 1 . . 4 . . 2 Guns 59 | . 10 22 27 . . . . . . . . Classes Destroyed 14 | . 5 5 2 1 . . . 1 . . . Worker 5 | . . 4 1 . . . . . . . . Builder 1 | . . . . 1 . . . . . . . Hauler 2 | . . 1 1 . . . . . . . . Recycler 3 | . 1 . . 1 . . . 1 . . . Operator 3 | . . 2 1 . . . . . . . . Watcher 22 | . 3 4 5 2 1 3 . 1 . . 3 Swarmer 23 | . 4 7 6 . 2 3 . . . . 1 Grunt 23 | . 4 8 9 . . . . 1 . . 1 Brawler 1 | . . . 1 . . . . . . . . Duelist 1 | . . 1 . . . . . . . . . Sentry 18 | . . 6 10 . 1 . . 1 . . . Hunter 3 | . . . 1 . . . . 2 . . . Programmer 1 | . . . . . . . . 1 . . . Subdweller 2 | . 2 . . . . . . . . . . Best Kill Streak 9 | . 3 9 4 2 2 3 . 4 . . 1 Combat Bots Only 5 | . 2 5 3 . 2 3 . 3 . . 1 Max Kills in Single Turn 2 | . 2 2 2 1 1 1 . 1 . . 1 Gunslinging 1 | . 1 1 1 . . . . . . . . Exploded . | . . . . . . . . . . . . Melee 1 | . . . . . 1 . . 1 . . 1 Uniques/NPCs Destroyed . | . . . . . . . . . . . . Combat | -11 -10 -9 -8 -7 -6 -5 -4 -3 -2 -2 -1 -------- Run | Yrd Mat Mat Mat Fac Fac Fac Fac Res Res DSF Acc Hostile Shots Fired 395 | . 32 47 77 13 24 19 . 93 . 2 88 Missed 163 | . 6 7 24 9 14 8 . 37 . . 58 Damage Taken 2415 | . 252 280 341 78 77 104 . 720 . 118 445 Core 561 | . 43 21 40 23 37 20 . 328 . . 49 Absorbed by Shields 70 | . . . 70 . . . . . . . . Redirected to Shielding 213 | . . . . . 7 12 . 156 . 38 . Ignored by Resistances 1513 | . 156 181 260 44 49 63 . 430 . 64 266 Core Remaining (%) 93 | 100 82 94 92 96 95 98 100 74 . 100 96 Volleys Fired 129 | . 29 41 58 1 . . . . . . . Largest 3 | . 2 3 3 1 . . . . . . . Hottest 84 | . 70 75 84 39 . . . . . . . Shots Fired 355 | . 57 123 174 1 . . . . . . . Gun 354 | . 57 123 174 . . . . . . . . Cannon . | . . . . . . . . . . . . Launcher 1 | . . . . 1 . . . . . . . Special . | . . . . . . . . . . . . Kinetic 352 | . 55 123 174 . . . . . . . . Thermal 2 | . 2 . . . . . . . . . . Explosive . | . . . . . . . . . . . . Electromagnetic 1 | . . . . 1 . . . . . . . Robot Hit Streak 55 | . 14 34 55 . . . . . . . . Robot Miss Streak 2 | . 1 2 2 . . . . . . . . Penetration Max 1 | . . . 1 . . . . . . . . Secondary Targets 11 | . 1 5 5 . . . . . . . . Max Gunslinging Chain 1 | . 1 1 1 . . . . . . . . Shots Hit Robots 315 | . 47 89 129 3 5 6 . 24 . . 12 Core Hits 135 | . 23 39 49 4 . . . 11 . . 9 Critical Kills 3 | . . . 3 . . . . . . . . Critical Parts Destroyed 3 | . . . . . 2 1 . . . . . Critical Strikes 8 | . . . 3 . 2 1 . 1 . . 1 Destroy 3 | . . . 3 . . . . . . . . Smash 3 | . . . . . 2 1 . . . . . Impale 2 | . . . . . . . . 1 . . 1 Melee Attacks 97 | . . . . 4 9 10 . 46 . . 28 Impact 31 | . . . . 4 9 10 . 8 . . . Slashing . | . . . . . . . . . . . . Piercing 66 | . . . . . . . . 38 . . 28 Sneak Attacks 3 | . . . . 1 . . . 2 . . . Combat Hostiles . | . . . . . . . . . . . . Follow-up Attacks . | . . . . . . . . . . . . Damage Inflicted 7840 | . 634 1696 2812 312 302 423 . 1127 . . 534 Guns 5135 | . 634 1689 2812 . . . . . . . . Cannons . | . . . . . . . . . . . . Explosions 100 | . . . . 100 . . . . . . . Melee 2598 | . . . . 212 302 423 . 1127 . . 534 Ramming 7 | . . 7 . . . . . . . . . Kinetic 5110 | . 609 1689 2812 . . . . . . . . Thermal 25 | . 25 . . . . . . . . . . Explosive . | . . . . . . . . . . . . Electromagnetic 100 | . . . . 100 . . . . . . . Impact 1368 | . . . . 212 302 423 . 431 . . . Slashing . | . . . . . . . . . . . . Piercing 1230 | . . . . . . . . 696 . . 534 Highest Corruption 3 | . . . . 1 . . . 3 . . 2 Average Corruption 1 | . . . . 1 . . . 2 . . 1 Corruption Purged . | . . . . . . . . . . . . Corruption Blocked . | . . . . . . . . . . . . Effects 9 | . . . . 1 . . . 6 . . 2 Matter Fused 1 | . . . . . . . . 1 . . . Heat Flow Errors 2 | . . . . . . . . 1 . . 1 Energy Discharges 3 | . . . . 1 . . . 2 . . . Parts Rejected 2 | . . . . . . . . 1 . . 1 Data Loss (minor) 1 | . . . . . . . . 1 . . . Overload Shots . | . . . . . . . . . . . . Overflow Damage 618 | . . . . 30 177 266 . 126 . . 19 Projectiles . | . . . . . . . . . . . . Explosions . | . . . . . . . . . . . . Melee 618 | . . . . 30 177 266 . 126 . . 19 Knockbacks 9 | . . . . 1 . 3 . 5 . . . Impact 9 | . . . . 1 . 3 . 5 . . . Kinetic . | . . . . . . . . . . . . Secondary . | . . . . . . . . . . . . Self-Inflicted Damage . | . . . . . . . . . . . . Shots . | . . . . . . . . . . . . Rammed . | . . . . . . . . . . . . Targets Rammed 2 | . . 2 . . . . . . . . . Kicked . | . . . . . . . . . . . . Crushed 2 | . . 2 . . . . . . . . . Highest Temperature 244 | . 37 212 134 . . . . 91 . . 244 Average Temperature 40 | . 10 52 34 . . . . 56 . . 128 Received Heat Transfer 633 | . 120 135 192 . 21 . . 102 . . 63 Siege Activations . | . . . . . . . . . . . . Robots Corrupted . | . . . . . . . . . . . . Combat Hostiles . | . . . . . . . . . . . . Parts Fried 14 | . . . . 2 5 6 . 1 . . . Impact Corruptions 25 | . . . . 1 8 11 . 5 . . . Robots Melted . | . . . . . . . . . . . . Combat Hostiles . | . . . . . . . . . . . . Parts Melted . | . . . . . . . . . . . . Heat Transferred 74 | . 74 . . . . . . . . . . Parts Sabotaged . | . . . . . . . . . . . . Parts Stolen . | . . . . . . . . . . . . Parts Stripped . | . . . . . . . . . . . . Power Chain Reactions . | . . . . . . . . . . . . Alert | -11 -10 -9 -8 -7 -6 -5 -4 -3 -2 -2 -1 ------- Run | Yrd Mat Mat Mat Fac Fac Fac Fac Res Res DSF Acc Peak Influence 369 | . 129 307 284 263 257 183 25 347 28 16 369 Initial 92 | . . 7 . . 50 92 25 9 28 16 . Average 99 | . 41 109 91 81 155 109 25 148 28 2 215 Maximum Alert Level 1 | . . 1 1 1 1 . . 1 . . 1 Low Security (%) 87 | 100 100 98 88 85 64 100 100 68 100 100 33 Level 1 12 | . . 1 11 14 35 . . 31 . . 66 Level 2 . | . . . . . . . . . . . . Level 3 . | . . . . . . . . . . . . Level 4 . | . . . . . . . . . . . . Level 5 . | . . . . . . . . . . . . High Security . | . . . . . . . . . . . . Max Security . | . . . . . . . . . . . . Squads Dispatched 8 | . . 3 1 1 . . . 1 . . 2 Investigation . | . . . . . . . . . . . . Extermination 1 | . . . . . . . . 1 . . . Reinforcement 7 | . . 3 1 1 . . . . . . 2 Assault . | . . . . . . . . . . . . Garrison . | . . . . . . . . . . . . Intercept . | . . . . . . . . . . . . Searches Triggered . | . . . . . . . . . . . . Construction Impeded . | . . . . . . . . . . . . Haulers Reinforced . | . . . . . . . . . . . . Active Scanning Responses . | . . . . . . . . . . . . Cargo Convoy Interrupts . | . . . . . . . . . . . . Stealth | -11 -10 -9 -8 -7 -6 -5 -4 -3 -2 -2 -1 --------- Run | Yrd Mat Mat Mat Fac Fac Fac Fac Res Res DSF Acc Distress Signals 10 | . 1 1 3 1 1 1 . 2 . . . Communications Jammed 29 | . . . . . . . . 10 . . 19 Distress Signals 29 | . . . . . . . . 10 . . 19 Times Spotted 175 | . 17 28 35 19 9 11 . 20 . 2 34 Peak Tracking Total 9 | . 3 4 3 7 3 6 . 6 . 1 9 Tactical Retreats 20 | . . . . 5 1 . . 6 . 1 7 Traps | -11 -10 -9 -8 -7 -6 -5 -4 -3 -2 -2 -1 ------- Run | Yrd Mat Mat Mat Fac Fac Fac Fac Res Res DSF Acc Traps Triggered 9 | . . . 1 3 . . . . . 3 2 Indirectly . | . . . . . . . . . . . . Trap Hack Attempts . | . . . . . . . . . . . . Triggered . | . . . . . . . . . . . . Disarmed . | . . . . . . . . . . . . Reprogrammed . | . . . . . . . . . . . . Reused . | . . . . . . . . . . . . Traps Extracted . | . . . . . . . . . . . . Installed . | . . . . . . . . . . . . Triggered . | . . . . . . . . . . . . Machines | -11 -10 -9 -8 -7 -6 -5 -4 -3 -2 -2 -1 ---------- Run | Yrd Mat Mat Mat Fac Fac Fac Fac Res Res DSF Acc Machines Disabled 3 | . . . 2 1 . . . . . . . Max in Single Turn 1 | . . . 1 1 . . . . . . . Garrison Access 4 | . . . 1 1 . . . . . . 2 Machines Repaired . | . . . . . . . . . . . . Machines Dismantled . | . . . . . . . . . . . . Machines Sabotaged . | . . . . . . . . . . . . Overloaded Fab Kills . | . . . . . . . . . . . . Hacking | -11 -10 -9 -8 -7 -6 -5 -4 -3 -2 -2 -1 --------- Run | Yrd Mat Mat Mat Fac Fac Fac Fac Res Res DSF Acc Machines Accessed 61 | . 10 9 14 5 4 4 . 6 2 . 7 Terminals 48 | . 8 9 10 3 3 3 . 6 2 . 4 Fabricators 4 | . . . . 1 1 1 . . . . 1 Repair Stations . | . . . . . . . . . . . . Recycling Units 4 | . 2 . 2 . . . . . . . . Scanalyzers 1 | . . . 1 . . . . . . . . Garrison Access 4 | . . . 1 1 . . . . . . 2 Total Hacks 200 | . 39 30 42 10 19 22 . 21 6 . 11 Successful 159 | . 29 22 27 7 19 21 . 18 6 . 10 Failed 41 | . 10 8 15 3 . 1 . 3 . . 1 Catastrophic 2 | . . . . 2 . . . . . . . Database Lockouts . | . . . . . . . . . . . . Manual 131 | . 30 24 28 8 12 11 . 12 4 . 2 Terminals 163 | . 32 30 32 8 12 15 . 21 6 . 7 Fabricators 17 | . . . . 1 7 7 . . . . 2 Repair Stations . | . . . . . . . . . . . . Recycling Units 14 | . 7 . 7 . . . . . . . . Scanalyzers 2 | . . . 2 . . . . . . . . Garrison Access 4 | . . . 1 1 . . . . . . 2 Terminal Hacks 93 | . 20 14 16 3 6 10 . 15 4 . 5 Part Schematic 5 | . . . 1 1 . 3 . . . . . Robot Analysis 12 | . 4 4 4 . . . . . . . . Prototype ID Bank 5 | . 5 . . . . . . . . . . Open Door 2 | . . . . . . . . . . . 2 Open DSF 1 | . . . . . . . . . 1 . . Level Access Points 6 | . . . . 1 1 1 . 1 1 . 1 Emergency Access Points 1 | . . . . . . . . 1 . . . Machine Index 1 | . . . . . . 1 . . . . . Terminal Index 4 | . . 1 1 . 1 . . 1 . . . Fabricator Index 1 | . . . . . . . . 1 . . . Alert Level 1 | . . . . . . . . 1 . . . Unreport Threat 1 | . . . . 1 . . . . . . . Locate Traps 21 | . 5 3 4 . 2 2 . 4 1 . . Recall Reinforcements 1 | . . 1 . . . . . . . . . Hauler Manifests 5 | . 2 1 1 . . 1 . . . . . Registered Components 1 | . . . 1 . . . . . . . . Zone Layout 25 | . 4 4 4 . 2 2 . 6 1 . 2 Fabricator Hacks 14 | . . . . . 6 6 . . . . 2 Load Schematic 7 | . . . . . 3 3 . . . . 1 Build 7 | . . . . . 3 3 . . . . 1 Repair Station Hacks . | . . . . . . . . . . . . Recycling Unit Hacks 4 | . 2 . 2 . . . . . . . . Retrieve Components 4 | . 2 . 2 . . . . . . . . Scanalyzer 2 | . . . 2 . . . . . . . . Insert Component 1 | . . . 1 . . . . . . . . Analyze 1 | . . . 1 . . . . . . . . Garrison Access Hacks 4 | . . . 1 1 . . . . . . 2 Seal Access 4 | . . . 1 1 . . . . . . 2 Unauthorized Hacks 42 | . 7 8 6 3 7 5 . 3 2 . 1 Terminals 31 | . 2 8 3 2 6 4 . 3 2 . 1 Track 1 | . . 1 . . . . . . . . . Assimilate 8 | . . 4 . . 2 2 . . . . . Botnet 14 | . 2 2 2 1 2 2 . 2 1 . . Disrupt 2 | . . . . . 1 . . . . . 1 Operators 6 | . . 1 1 1 1 . . 1 1 . . Fabricators 3 | . . . . 1 1 1 . . . . . Prioritize 2 | . . . . . 1 1 . . . . . Liberate 1 | . . . . 1 . . . . . . . Repair Stations . | . . . . . . . . . . . . Recycling Units 8 | . 5 . 3 . . . . . . . . Reject 4 | . 2 . 2 . . . . . . . . Recyclers 1 | . 1 . . . . . . . . . . Mask 3 | . 2 . 1 . . . . . . . . Scanalyzers . | . . . . . . . . . . . . Garrison Access . | . . . . . . . . . . . . Data Cores Recovered . | . . . . . . . . . . . . Used . | . . . . . . . . . . . . Hacking Detections 49 | . 9 8 12 3 4 3 . 5 1 . 4 Full Trace Events . | . . . . . . . . . . . . Feedback Events . | . . . . . . . . . . . . Feedback Blocked . | . . . . . . . . . . . . Robot Schematics Acquired . | . . . . . . . . . . . . Robots Built . | . . . . . . . . . . . . Authchips . | . . . . . . . . . . . . Time . | . . . . . . . . . . . . Total Robot Build Rating . | . . . . . . . . . . . . Part Schematics Acquired 6 | . . . 2 1 . 3 . . . . . Parts Built 7 | . . . . . 3 3 . . . . 1 Authchips . | . . . . . . . . . . . . Time 349 | . . . . . 93 217 . . . . 39 Total Part Build Rating 41 | . . . . . 15 19 . . . . 7 Parts Repaired . | . . . . . . . . . . . . Time . | . . . . . . . . . . . . Parts Recycled . | . . . . . . . . . . . . Recycled Matter . | . . . . . . . . . . . . Retrieved Matter . | . . . . . . . . . . . . Retrieved Components 30 | . 11 . 19 . . . . . . . . Parts Scanalyzed 1 | . . . 1 . . . . . . . . Part Schematics Acquired 1 | . . . 1 . . . . . . . . Parts Damaged . | . . . . . . . . . . . . Bothacking | -11 -10 -9 -8 -7 -6 -5 -4 -3 -2 -2 -1 ------------ Run | Yrd Mat Mat Mat Fac Fac Fac Fac Res Res DSF Acc Used RIF Installer . | . . . . . . . . . . . . Robots Hacked . | . . . . . . . . . . . . Non-combat . | . . . . . . . . . . . . Combat . | . . . . . . . . . . . . Robot Hacks Applied . | . . . . . . . . . . . . Relay Couplers Released . | . . . . . . . . . . . . Fabnet Peak Effective % . | . . . . . . . . . . . . Robots Rewired . | . . . . . . . . . . . . Allies Hacked . | . . . . . . . . . . . . Hacks Repelled . | . . . . . . . . . . . . Allies | -11 -10 -9 -8 -7 -6 -5 -4 -3 -2 -2 -1 -------- Run | Yrd Mat Mat Mat Fac Fac Fac Fac Res Res DSF Acc Total Allies 7 | . . 1 . 3 1 2 . . . . . Largest Group 3 | . . 1 . 3 1 3 2 2 . . . Highest-Rated Group 48 | . . 10 . 48 10 46 20 20 . . . Highest-Rated Ally 26 | . . 10 . 16 10 26 10 10 . . . Total Orders . | . . . . . . . . . . . . Ally Attacks 10 | . . . . 10 . . . . . . . Total Damage 107 | . . . . 107 . . . . . . . Kills 2 | . . . . 2 . . . . . . . Allies Corrupted . | . . . . . . . . . . . . Allies Melted . | . . . . . . . . . . . . Intel | -11 -10 -9 -8 -7 -6 -5 -4 -3 -2 -2 -1 ------- Run | Yrd Mat Mat Mat Fac Fac Fac Fac Res Res DSF Acc Robot Analysis Total 12 | . 4 4 4 . . . . . . . . Derelict Logs Recovered . | . . . . . . . . . . . . Drone Launches . | . . . . . . . . . . . . Drone Recoveries . | . . . . . . . . . . . . Exploration | -11 -10 -9 -8 -7 -6 -5 -4 -3 -2 -2 -1 ------------- Run | Yrd Mat Mat Mat Fac Fac Fac Fac Res Res DSF Acc Turns Passed 7466 | 92 1281 1693 2197 291 280 492 56 509 17 46 512 Spaces Moved 6950 | 53 698 895 1079 896 652 497 144 819 39 77 1101 Core 6 | 6 . . . . . . . . . . . Treads 2719 | 47 698 895 1079 . . . . . . . . Legs . | . . . . . . . . . . . . Wheels . | . . . . . . . . . . . . Hover . | . . . . . . . . . . . . Flight 4225 | . . . . 896 652 497 144 819 39 77 1101 Fastest Speed 26 | 50 160 160 145 26 26 26 26 26 37 37 30 Average Speed 83 | 147 160 160 176 26 26 26 26 29 37 37 36 Slowest Speed 225 | 160 160 160 225 26 26 26 26 120 37 37 117 Overloaded Moves . | . . . . . . . . . . . . Propulsion Burnouts . | . . . . . . . . . . . . Robots Hopped 18 | . . . . 3 3 1 . 3 . . 8 Cave-ins Triggered . | . . . . . . . . . . . . Exploration Rate (%) 39 | 4 97 80 95 25 20 21 3 28 1 73 31 Regions Visited 11 Branch Regions . Pre-discovered Areas . | . . . . . . . . . . . . Known Exits Taken 10 | 1 1 1 1 1 1 1 1 1 1 . . Unknown Exits Taken . | . . . . . . . . . . . . Scrap Searched . | . . . . . . . . . . . . Spaces Dug 29 | . . . . . 1 2 . 16 . . 10 Terrain Destroyed 35 | . . . 6 . 1 2 . 16 . . 10 Melee 29 | . . . . . 1 2 . 16 . . 10 Projectile 6 | . . . 6 . . . . . . . . AOE . | . . . . . . . . . . . . Terrain Rammed . | . . . . . . . . . . . . Walls Destroyed . | . . . . . . . . . . . . Machines Disabled . | . . . . . . . . . . . . Actions | -11 -10 -9 -8 -7 -6 -5 -4 -3 -2 -2 -1 --------- Run | Yrd Mat Mat Mat Fac Fac Fac Fac Res Res DSF Acc Total 8162 | 63 808 1088 1244 949 743 842 161 990 40 93 1141 Wait 812 | 1 63 127 72 25 78 325 14 103 . . 4 Move 6905 | 52 697 894 1078 889 645 494 143 813 38 76 1086 Hop 15 | . . . . 3 3 1 . 2 . . 6 Pick Up 37 | 1 8 9 12 2 2 1 . 2 . . . Fast Attach 52 | 8 2 5 9 1 . 3 1 10 1 1 11 Attach 23 | . 1 1 3 9 2 1 2 3 . . 1 Detach 4 | . . . . 1 . . . 2 . . 1 Swap 15 | . 3 1 2 1 4 3 . . . . 1 Drop 55 | 1 5 8 10 13 . 4 1 9 1 . 3 Fire 129 | . 29 41 58 1 . . . . . . . Melee 97 | . . . . 4 9 10 . 46 . . 28 Ram . | . . . . . . . . . . . . Kick . | . . . . . . . . . . . . Crush 2 | . . 2 . . . . . . . . . Escape Stasis 16 | . . . . . . . . . . 16 . Rewire . | . . . . . . . . . . . . Trap . | . . . . . . . . . . . . Miscellaneous . | . . . . . . . . . . . . Route ------- -11/Scrapyard -10/Materials (discovered 6 exits: *Mat x3 / *Min x2 / *Sub) -9/Materials (discovered 5 exits: *Mat x3 / *Min x2) -8/Materials (discovered 4 exits: *Fac x3 / *Sto) -7/Factory (discovered 4 exits: *Fac x4) -6/Factory (discovered 4 exits: *Fac x4) -5/Factory (discovered 5 exits: *Fac x4 / *Upp) -4/Factory -3/Research (discovered 4 exits: *Res x3 / *Qua) -2/Research (discovered 4 exits: Acc x3 / DSF) -2/DSF -1/Access To Epsilon Eridani History --------- Turn | Location | Event 3 | -11/Scrapyard | Identified exit to Materials 3 | -11/Scrapyard | Discovered exit to Materials (range 15) 93 | -11/Scrapyard | Entered Materials 93 | -10/Materials | Evolved 1 slot: Utility x1 263 | -10/Materials | Identified exit to Mines 263 | -10/Materials | Discovered exit to Mines (range 12) 295 | -10/Materials | Discovered exit to Mines (range 8) 301 | -10/Materials | Build established: Hacker-Mutant 555 | -10/Materials | Identified exit to Materials 555 | -10/Materials | Discovered exit to Materials (range 9) 690 | -10/Materials | Discovered exit to Materials (range 15) 893 | -10/Materials | Derelicts attacked the area 1043 | -10/Materials | Identified exit to Subcaves 1043 | -10/Materials | Discovered exit to Subcaves (range 8) 1322 | -10/Materials | Discovered exit to Materials (range 15) 1374 | -10/Materials | Entered another Materials area 1374 | -9/Materials | Evolved 2 slots: Utility x1, Weapon x1 1663 | -9/Materials | Build established: Hacker-Gunner 1798 | -9/Materials | Identified exit to Mines 1798 | -9/Materials | Discovered exit to Mines (range 14) 1830 | -9/Materials | Identified exit to Materials 1830 | -9/Materials | Discovered exit to Materials (range 10) 2031 | -9/Materials | Discovered exit to Materials (range 16) 2238 | -9/Materials | Discovered exit to Mines (range 15) 2637 | -9/Materials | Discovered exit to Materials (range 5) 3067 | -9/Materials | Entered another Materials area 3067 | -8/Materials | Evolved 2 slots: Propulsion x1, Utility x1 3390 | -8/Materials | Identified exit to Factory 3390 | -8/Materials | Discovered exit to Factory (range 10) 3583 | -8/Materials | Build established: Hacker-Tank 3832 | -8/Materials | Discovered exit to Factory (range 10) 4130 | -8/Materials | Discovered exit to Factory (range 11) 4315 | -8/Materials | Build established: Hacker-Skirmisher 4382 | -8/Materials | Identified exit to Storage 4382 | -8/Materials | Discovered exit to Storage (range 9) 5264 | -8/Materials | Entered Factory 5264 | -7/Factory | Evolved 2 slots: Propulsion x1, Utility x1 5324 | -7/Factory | Identified exit to Factory 5324 | -7/Factory | Discovered exit to Factory (range 6) 5555 | -7/Factory | Entered another Factory area 5555 | -6/Factory | Evolved 2 slots: Utility x2 5652 | -6/Factory | Fabricated Imp. Hacking Suite (x1) 5684 | -6/Factory | Fabricated Imp. Hacking Suite (x1) 5709 | -6/Factory | Fabricated Imp. Hacking Suite (x1) 5766 | -6/Factory | Identified exit to Factory 5835 | -6/Factory | Entered another Factory area 5835 | -5/Factory | Accompanied by 1 ally 5835 | -5/Factory | Evolved 2 slots: Utility x2 5875 | -5/Factory | Identified exit to Upper Caves 5875 | -5/Factory | Discovered exit to Upper Caves (range 7) 6005 | -5/Factory | Identified exit to Factory 6136 | -5/Factory | Build established: Wizard-Ninja 6174 | -5/Factory | Fabricated Adv. System Shield (x1) 6234 | -5/Factory | Fabricated Lrn. Sensor Array (x1) 6288 | -5/Factory | Fabricated Adv. Hacking Suite (x1) 6327 | -5/Factory | Entered another Factory area 6327 | -4/Factory | Accompanied by 2 allies 6327 | -4/Factory | Evolved 2 slots: Utility x2 6375 | -4/Factory | Identified exit to Research 6375 | -4/Factory | Discovered exit to Research (range 5) 6383 | -4/Factory | Entered Research 6383 | -3/Research | Accompanied by 2 allies 6383 | -3/Research | Evolved 2 slots: Utility x2 6519 | -3/Research | Identified exit to Quarantine 6519 | -3/Research | Discovered exit to Quarantine (range 15) 6545 | -3/Research | Identified exit to Research 6648 | -3/Research | Lost 3 parts (1p2u) 6689 | -3/Research | Spotted B-86 Titan 6892 | -3/Research | Entered another Research area 6892 | -2/Research | Evolved 2 slots: Power x1, Propulsion x1 6900 | -2/Research | Identified exit to Access 6909 | -2/Research | Identified exit to DSF 6909 | -2/Research | Entered DSF 6926 | -2/DSF | Additional patrols routed to DSF 6927 | -2/DSF | Discovered exit to Access (range 15) 6955 | -2/DSF | Entered Access 6955 | -1/Access | Evolved 2 slots: Utility x2 6965 | -1/Access | Spotted B-99 Colossus 7117 | -1/Access | Fabricated Lrn. Sensor Array? 7215 | -1/Access | Identified exit to Surface 7444 | -1/Access | Spotted B-99 Colossus 7467 | *** | Escaped! Last Messages --------------- Penetrated by Slug. Imp. Hacking Suite destroyed. Penetrated by Slug. Lrn. Sensor Array destroyed. K-01 Serf cleans the Anti-Orbital Battery. Adv. Signal Interpreter destroyed. O-24 Administrator: "IFF HANDSHAKE FAILED. SECURING TERMINAL." O-24 Administrator distress signal jammed. S-43 Plague destroyed. ALERT: Hostiles spotted, dispatching reinforcements to Terminal A011. Acquired Lgt. Antimatter Reactor. Slug penetrates Wall. Penetrated by Slug. Connecting with Terminal... >>Open(Door) Sealed Barrier opened. The Access Shell folds into the floor. [Achievement: Straight Shot] Map ----- +----------------------------------------------------+ | # ?????? #"" """" ##????????????????????? | | ???? ???? #"T """" ##????????????????????? | | ???? #"" """" ##????????????????????? | | ????####/######"" """" ##????????????????????? | | ???? # "" + ????????????????????? | | ????????? / ##????????????????????? | | ######????## # ##????????????????????? | | ######????## + ##????????????????????? | | ## ??? # # ##????????????????????? | | ## ? # #################### ?????????? | | ## # ######################/###?????????? | | ## " ????????? | | ?????????? # ?????????? | | ?????????? # ####### ""##????????????????? | | ?????????? # ####### ""##????????????????? | | ?????????? # ##???## ""##????????????????? | | ??????????## ##???## T##????????????????? | | ??????????## ##???## ""##????????????????? | | ??????????## ##??### ""###???????????????? | | ??????????## ##??### ""###???????????????? | | ??????????## ##??## ##???????????????? | | ??????????## ##??### ###???????????????? | | ###???????## ##??### ###???????????????? | | ###?######## ##???## ##????????????????? | | # ####### ##???## ##????????????????? | | # ##???## @" ##????????????????? | | ##???## "" ##????????????????? | | # ####### ##???## ##????????????????? | | ##+?######## ##???## ##????????????????? | | ???????## ##???## ##????????????????? | | ??????????## ##???##""""""""""##????????????????? | | ???????? ### ##???##"????????"##????????????????? | | ???????? ### ##??????????????"##????????????????? | | ???????? + #####??????????""##????????????????? | | ???????? ###+######????????? ##????????????????? | | ???????? # ##????????? ##????????????????? | | ???????? # ##???????? ##????????????????? | | ???????? # ##???????? ##????????????????? | | ???????? # ##??????? ##????????????????? | | ???????? # "T" ##??????? ##????????????????? | | ???????? # """ #### ???????????????????? | | ????????########"####### ##???????????????????? | | ????????### %[ # #######??????????????? | | ?????????## == # #######??????????????? | | ?????????## + ??????? | | ?????????##"" # ??????? | | ?????????##"" # ??????? | | ?????????##"" # ??????? | | ?????????##T #########+##########??????? | | ?????????##"" # ##??????? | +----------------------------------------------------+ Best States ------------- Heat Dissipation 52 Energy Generation 37 Energy Capacity 340 Matter Stores 300 Matter Capacity 300 Sight Range 20 Robot Scan Range 18 Terrain Scan Range 20 Terrain Scan Density 210 ECM Strength 1 Jamming Range 16 Cloak Strength 2 Armor Coverage 225 Resistance: KI 35 Resistance: TH 35 Resistance: EX 35 Resistance: EM 35 Resistance: I 35 Resistance: S 35 Resistance: P 35 Power Shielding 33 Propulsion Shielding 66 Utility Shielding 66 Phase Shifting 10 Evasion (%) 84 Targeting Accuracy 5 Recoil Reduction 3 Offensive Hacking 70 Defensive Hacking 24 Item Schematics ----------------- Imp. VTOL Module | -8/Materials | Scanalyzed Hacking Suite | -8/Materials | Hacked Imp. Hacking Suite | -7/Factory | Hacked Adv. Hacking Suite | -5/Factory | Hacked Adv. System Shield | -5/Factory | Hacked Lrn. Sensor Array | -5/Factory | Hacked Robot Schematics ------------------ None Fabricated ------------ Imp. Hacking Suite | x1 | -6/Factory Imp. Hacking Suite | x1 | -6/Factory Imp. Hacking Suite | x1 | -6/Factory Adv. System Shield | x1 | -5/Factory Lrn. Sensor Array | x1 | -5/Factory Adv. Hacking Suite | x1 | -5/Factory Lrn. Sensor Array | x1 | -1/Access Alien Tech Used ----------------- None Achievements -------------- Straight Shot Challenges ------------ None Game ------ Seed MinesnifferAerolevRouter Manual? 0 Play Time 01:26:46 Cumulative 406.0 hours Start 2024.06.18 @ 05:24:39 End 2024.06.18 @ 09:50:07 Sessions 3 Manual Loads 0 Difficulty Explorer Special Mode None Game No. 26 Rogue 6 Adventurer 6 Explorer 14 Win Type 0 Total 26 Types 8/5/2/5/0/1/1/3/1 Lore% 83 Gallery% 79 Achievement% 79 Wizard Run 0 Options --------- Layout 1 ASCII 0 Keyboard 0 Movement Mouse Keybinds 0 Fullscreen 1 Font 24/Smallcaps Map View 50x35 Zoom Use 0% Tactical HUD 0 Map Filters NONE Filters NONE Steam 1 RUN: 4d07f4b0-a364-4b40-bab2-28672e21a860